bitfinex-derivatives/quotes_ETHF0:USTF0_20250321
["timestamp","ask_amount","ask_price","bid_price","bid_amount"]
[1742589436663,6.29385126,1978.7,1978.6,1.01119]
[1742589436866,7.30499126,1978.7,1978.6,1.01119]
[1742589437065,6.29385126,1978.7,1978.6,1.01119]
[1742589437762,5.2947,1978.7,1978.6,1.01119]
[1742589438768,10.51194506,1978.7,1978.6,1.01119]
[1742589438967,9.51364,1978.7,1978.6,2.39419]
[1742589439172,10.51169327,1978.7,1978.6,2.39419]
[1742589439476,1.01124,1978.6,1978.4,2.52812]
[1742589439671,1.01124,1978.6,1978.5,2.39419]
[1742589441478,1.01131,1978.5,1978.4,1.01126]
[1742589441675,1.0114,1978.3,1978.2,1.01136]
[1742589441874,1.0114,1978.3,1978.2,2.33166]
[1742589442174,4.2214,1978.3,1978.2,2.33166]
[1742589443077,3.21,1978.3,1978.2,2.33166]
[1742589450380,4.21903,1978.6,1978.5,1.01125]
[1742589450681,7.42903,1978.6,1978.5,1.01125]
[1742589451186,1.01125,1978.5,1978.4,1.2783]
[1742589451385,1.0113,1978.4,1978.3,2.28962]
[1742589451583,7.4291,1978.4,1978.3,2.28962]
[1742589451783,8.7109,1978.4,1978.3,2.28962]
[1742589456085,3.21,1978.4,1978.3,2.28962]
[1742589456689,4.2213,1978.4,1978.3,2.28962]
[1742589456885,5.5993,1978.4,1978.3,2.28962]
[1742589457085,4.588,1978.4,1978.3,2.28962]
[1742589457289,5.5993,1978.4,1978.3,2.28962]
[1742589459087,6.2869,1978.4,1978.3,2.28962]
[1742589459282,1.01148,1978.2,1977.8,3.2078]
[1742589459586,6.74824,1978.0,1977.7,1.4065]
[1742589459793,1.0116,1977.8,1977.7,1.4065]
[1742589460191,2.3295,1977.8,1977.7,1.4065]
[1742589460394,5.5373,1977.8,1977.7,1.4065]
[1742589460789,6.53692273,1977.8,1977.7,1.4065]
[1742589461195,5.5373,1977.8,1977.7,1.4065]
[1742589467295,6.2338,1977.8,1977.7,1.4065]
[1742589469805,1.01171,1977.6,1977.5,0.65639763]
[1742589470006,1.01196,1977.2,1977.1,1.01189]
[1742589470600,1.01196,1977.1,1977.0,0.6779]
[1742589470801,7.43076,1977.1,1977.0,1.68991]
[1742589471007,4.22296,1977.1,1977.0,1.68991]
[1742589471208,3.211,1977.1,1977.0,1.68991]
[1742589471403,4.22296,1977.1,1977.0,1.68991]
[1742589472314,3.211,1977.1,1977.0,1.68991]
[1742589473012,4.22296,1977.1,1977.0,3.01201]
[1742589474310,3.211,1977.1,1977.0,3.01201]
[1742589474909,4.22296,1977.1,1977.0,3.01201]
[1742589475105,3.211,1977.1,1977.0,3.01201]
[1742589475307,4.22296,1977.1,1977.0,3.01201]
[1742589475507,3.211,1977.1,1977.0,3.01201]
[1742589475706,3.211,1977.1,1977.0,6.21981]
[1742589475911,0.00759763,1977.2,1977.1,1.01196]
[1742589476205,3.21859763,1977.2,1977.1,2.41576]
[1742589476907,0.00759763,1977.2,1977.1,2.41576]
[1742589483013,7.63e-06,1977.2,1977.1,2.41576]
[1742589483914,7.63e-06,1977.2,1977.1,4.91576]
[1742589487017,7.63e-06,1977.2,1977.1,2.41576]
[1742589487215,7.63e-06,1977.2,1977.1,5.62776]
[1742589494918,7.63e-06,1977.2,1977.1,8.12776]
[1742589495421,4.5393,1978.1,1978.0,1.0115]
[1742589496721,5.9074,1978.1,1978.0,2.3439]
[1742589496921,2.0082,1978.1,1978.0,2.3439]
[1742589497128,0.6942,1978.4,1978.3,1.01135]
[1742589497426,1.3343,1978.4,1978.3,1.01135]
[1742589497624,3.216,1978.5,1978.4,1.0113]
[1742589498415,1.3681,1978.5,1978.4,1.0113]
[1742589498625,1.3681,1978.5,1978.4,2.3437]
[1742589503428,2.37935,1978.5,1978.4,2.3437]
[1742589503628,2.37935,1978.5,1978.4,1.0113]
[1742589503824,1.3681,1978.5,1978.4,1.0113]
[1742589504132,1.3681,1978.5,1978.3,1.01131]
[1742589504332,3.214,1978.4,1978.3,1.01131]
[1742589504629,6.4218,1978.4,1978.3,1.01131]
[1742589505130,7.4331,1978.4,1978.3,1.01131]
[1742589505833,1.01135,1978.3,1978.2,1.01896763]
[1742589506033,3.03505,1978.3,1978.2,1.01896763]
[1742589506833,2.0237,1978.3,1978.2,1.01896763]
[1742589507626,3.03505,1978.3,1978.2,1.01896763]
[1742589508727,0.6942,1978.6,1978.5,1.01125]
[1742589509230,3.222,1978.8,1978.7,1.01114]
[1742589509231,6.4298,1978.8,1978.7,1.01114]
[1742589509432,7.44089,1978.8,1978.7,1.01114]
[1742589509923,9.37839,1978.8,1978.7,1.01114]
[1742589512936,8.3673,1978.8,1978.7,1.01114]
[1742589513235,9.37839,1978.8,1978.7,1.01114]
[1742589513937,5.1555,1978.8,1978.7,1.01114]
[1742589514229,6.16659,1978.8,1978.7,1.01114]
[1742589514428,5.1555,1978.8,1978.7,1.01114]
[1742589515029,6.16659,1978.8,1978.7,2.34984]
[1742589515737,5.1555,1978.8,1978.7,2.34984]
[1742589516138,6.16659,1978.8,1978.7,2.34984]
[1742589517034,5.1555,1978.8,1978.7,2.34984]
[1742589517633,1.281,1978.8,1978.7,2.34984]
[1742589517836,0.7065,1979.1,1979.0,1.01099]
[1742589518740,0.7065,1979.1,1979.0,2.41199]
[1742589520037,1.71744,1979.1,1979.0,2.41199]
[1742589520539,0.7065,1979.1,1979.0,2.41199]
[1742589521943,3.218,1979.2,1979.0,1.401]
[1742589522139,3.218,1979.2,1979.1,1.3054]
[1742589522438,4.22791,1979.2,1979.1,2.31629]
[1742589523042,5.61391,1979.2,1979.1,2.31629]
[1742589526740,4.22791,1979.2,1979.1,2.31629]
[1742589527146,5.53671,1979.2,1979.1,2.31629]
[1742589529344,4.5258,1979.2,1979.1,2.31629]
[1742589529546,5.53669,1979.2,1979.1,2.31629]
[1742589530746,4.5258,1979.2,1979.1,2.31629]
[1742589531446,5.53669,1979.2,1979.1,2.31629]
[1742589531649,6.18409,1979.2,1979.1,2.31629]
[1742589533355,5.1732,1979.2,1979.1,2.31629]
[1742589533543,6.18409,1979.2,1979.1,2.31629]
[1742589536148,6.18409,1979.2,1979.1,1.3054]
[1742589536356,6.18409,1979.2,1978.9,0.6751]
[1742589536357,5.1732,1979.2,1978.8,5.70986]
[1742589536542,2.32027,1979.1,1979.0,1.01095]
[1742589537655,5.52807,1979.1,1979.0,1.01095]
[1742589540660,1.01099,1979.0,1978.9,2.3082]
[1742589540855,5.59429,1979.0,1978.9,2.3082]
[1742589541762,6.25809,1979.0,1978.9,2.3082]
[1742589542761,5.59429,1979.0,1978.9,1.2972]
[1742589542962,6.25809,1979.0,1978.9,1.2972]
[1742589543865,3.209,1979.0,1978.9,2.30824]
[1742589544160,4.21999,1979.0,1978.9,2.30824]
[1742589544462,3.209,1979.0,1978.9,2.30824]
[1742589544968,3.2078,1979.3,1979.2,1.01089]
[1742589545265,4.12840642,1979.7,1979.6,1.01068]
[1742589545564,1.01068,1979.6,1979.5,1.7163]
[1742589545765,7.0767,1979.7,1979.6,1.01068]
[1742589545967,49.06412,1979.8,1979.7,1.01063]
[1742589546267,1.01063,1979.7,1979.6,3.06734]
[1742589546461,1.01063,1979.7,1979.6,1.68424]
[1742589547366,1.01063,1979.7,1979.6,0.6736]
[1742589547668,2.33613,1979.7,1979.6,1.68428]
[1742589548964,5.55613,1979.7,1979.6,1.68428]
[1742589549357,1.01068,1979.6,1979.5,0.00757767]
[1742589549561,1.01099,1979.0,1978.9,2.3578]
[1742589549966,3.2078,1979.1,1979.0,1.01099]
[1742589550171,7.44869,1979.2,1979.1,1.01094]
[1742589550357,3.23,1979.2,1979.1,1.01094]
[1742589550665,4.24181,1979.4,1979.3,1.01084]
[1742589550867,1.01839114,1979.3,1979.2,1.01085]
[1742589552066,1.01094,1979.2,1979.1,1.0109]
[1742589552463,4.21874,1979.2,1979.1,1.0109]
[1742589552670,1.01094,1979.2,1979.1,1.0109]
[1742589553765,0.00751114,1979.3,1979.2,1.01089]
[1742589553971,1.01835114,1979.3,1979.2,1.01089]
[1742589554168,4.22615114,1979.3,1979.2,1.01089]
[1742589554363,0.00751114,1979.3,1979.2,1.01089]
[1742589554670,1.01835114,1979.3,1979.2,1.01089]
[1742589555074,4.22615114,1979.3,1979.2,1.67029]
[1742589555481,4.22615114,1979.3,1979.2,0.6594]
[1742589555780,1.01094,1979.1,1979.0,0.00757767]
[1742589556078,3.2078,1979.1,1979.0,1.01856767]
[1742589556473,4.21874,1979.1,1979.0,1.01856767]
[1742589557075,4.21874,1979.1,1979.0,0.00757767]
[1742589557578,5.59184,1979.1,1979.0,0.00757767]
[1742589558173,3.2078,1979.1,1979.0,1.01856767]
[1742589559180,4.24889,1979.2,1979.1,1.01094]
[1742589559476,3.21531114,1979.3,1979.2,1.01089]
[1742589559477,1.01835114,1979.3,1979.2,1.01089]
[1742589559683,0.00751114,1979.3,1979.2,1.01089]
[1742589559982,1.01835114,1979.3,1979.2,1.01089]
[1742589560783,0.00751114,1979.3,1979.2,1.01089]
[1742589560977,0.00751114,1979.3,1979.2,2.41889]
[1742589562085,1.01835114,1979.3,1979.2,2.41889]
[1742589562281,0.00751114,1979.3,1979.2,2.41889]
[1742589562885,1.01835114,1979.3,1979.2,2.41889]
[1742589563086,2.34225114,1979.3,1979.2,2.41889]
[1742589566989,2.34225114,1979.3,1979.2,1.408]
[1742589568782,1.01094,1979.1,1979.0,1.01855767]
[1742589568985,4.21874,1979.1,1979.0,1.01856767]
[1742589569193,4.21874,1979.1,1979.0,0.00757767]
[1742589569488,5.57774,1979.1,1979.0,0.00757767]
[1742589570088,6.94874,1979.1,1979.0,1.40587767]
[1742589573391,6.94874,1979.1,1979.0,2.41686767]
[1742589573591,5.58974,1979.1,1979.0,2.41686767]
[1742589573794,5.58974,1979.1,1979.0,3.06566767]
[1742589574193,5.58974,1979.1,1979.0,2.05467767]
[1742589575895,5.58974,1979.1,1979.0,1.40587767]
[1742589577598,5.58974,1979.1,1979.0,2.41686767]
[1742589578387,6.4428,1979.1,1979.0,2.41686767]
[1742589578588,7.45374,1979.1,1979.0,2.41686767]
[1742589581091,8.86394,1979.1,1979.0,2.41686767]
[1742589582291,8.86394,1979.1,1979.0,1.40587767]
[1742589582491,9.55484,1979.1,1979.0,1.40587767]
[1742589587502,9.55484,1979.1,1979.0,2.41686767]
[1742589587698,9.55484,1979.1,1979.0,1.40587767]
[1742589588295,10.54655328,1979.1,1979.0,1.40587767]
[1742589588596,1.01119,1978.7,1978.6,1.01114]
[1742589588798,3.235,1978.8,1978.7,1.01114]
[1742589588998,4.24614,1978.8,1978.7,2.40324]
[1742589591398,5.56304,1978.8,1978.7,2.40324]
[1742589591698,4.24614,1978.8,1978.7,2.40324]
[1742589593004,5.56304,1978.8,1978.7,1.3921]
[1742589593707,5.56304,1978.8,1978.7,2.40324]
[1742589595401,5.56304,1978.8,1978.7,1.3921]
[1742589597814,5.56304,1978.8,1978.7,2.40324]
[1742589598412,4.24614,1978.8,1978.7,2.40324]
[1742589598901,5.56334,1978.8,1978.7,1.3921]
[1742589599101,5.56334,1978.8,1978.7,2.40324]
[1742589599907,5.56334,1978.8,1978.7,1.3921]
[1742589603320,1.01114,1978.7,1978.6,0.00757767]
[1742589603508,1.01135,1978.3,1978.2,1.3142]
[1742589603704,7.44915,1978.3,1978.2,1.3142]
[1742589604309,1.01145,1978.1,1978.0,11.88371542]
[1742589604618,7.45025,1978.1,1978.0,11.88371542]
[1742589605507,7.45025,1978.1,1978.0,12.89521542]
[1742589605717,7.45025,1978.1,1978.0,13.57241542]
[1742589606710,7.45025,1978.1,1978.0,1.6887]
[1742589607616,0.00757767,1978.2,1978.1,1.01145]
[1742589607819,4.24797767,1978.2,1978.1,2.32665]
[1742589609215,5.62037767,1978.2,1978.1,2.32665]
[1742589615026,4.24797767,1978.2,1978.1,2.32665]
[1742589618825,0.00757767,1978.2,1978.1,2.32665]
[1742589622528,1.01897767,1978.2,1978.1,2.32665]
[1742589622928,2.31357767,1978.2,1978.1,2.32665]
[1742589624239,5.53857767,1978.2,1978.1,2.32665]
[1742589627041,5.53857767,1978.2,1978.1,1.3152]
[1742589629342,5.53857767,1978.2,1978.1,2.32665]
[1742589629542,5.53857767,1978.2,1978.1,1.3152]
[1742589630144,5.53857767,1978.2,1978.1,2.32665]
[1742589630731,5.53857767,1978.2,1978.1,1.3152]
[1742589630936,1.0115,1978.0,1977.9,0.68357767]
[1742589631236,1.0115,1978.0,1977.9,0.00757767]
[1742589631237,7.4403,1978.0,1977.9,0.00757767]
[1742589631542,8.806,1978.0,1977.9,1.30917767]
[1742589632130,8.806,1978.0,1977.9,0.00757767]
[1742589632536,8.88975054,1978.0,1977.9,0.00757767]
[1742589632733,8.88975191,1978.0,1977.9,0.00757767]
[1742589634336,8.806,1978.0,1977.9,0.00757767]
[1742589634542,8.806,1978.0,1977.9,1.30807767]
[1742589635842,6.4288,1978.0,1977.9,2.31962767]
[1742589636038,3.221,1978.0,1977.9,2.31962767]
[1742589636436,3.221,1978.0,1977.9,2.97092767]
[1742589636837,4.2325,1978.0,1977.9,2.97092767]
[1742589642240,2.53610767,1978.2,1977.9,2.97092767]
[1742589642241,3.21537767,1978.2,1977.9,4.48821767]
[1742589642449,4.24200767,1978.2,1978.1,1.01145]
[1742589642641,7.44980767,1978.2,1978.1,1.01145]
[1742589642944,7.44980767,1978.2,1978.1,2.39875]
[1742589643848,4.24200767,1978.2,1978.1,2.39875]
[1742589644051,7.44980767,1978.2,1978.1,2.39875]
[1742589646649,7.44980767,1978.2,1978.1,1.3873]
[1742589647552,1.01145,1978.1,1978.0,1.01146]
[1742589647752,1.70715,1978.1,1978.0,2.38726]
[1742589649248,4.91495,1978.1,1978.0,2.38726]
[1742589649457,1.0115,1978.0,1977.9,0.00757767]
[1742589649752,4.2325,1978.0,1977.9,0.00757767]
[1742589649946,5.2251779,1978.0,1977.9,0.00757767]
[1742589650154,1.01166,1977.7,1977.6,5.872]
[1742589650357,1.01171,1977.6,1977.5,2.39696]
[1742589652255,1.01171,1977.6,1977.5,1.3852]
[1742589652858,1.01171,1977.6,1977.5,2.39696]
[1742589653963,1.01171,1977.6,1977.5,1.3852]
[1742589654855,1.01176,1977.5,1977.4,0.00757767]
[1742589655062,7.53033127,1977.5,1977.4,0.00757767]
[1742589656262,7.53033127,1977.5,1977.4,1.36697767]
[1742589656458,7.53033154,1977.5,1977.4,1.36697767]
[1742589656657,7.44656,1977.5,1977.4,1.36697767]
[1742589659267,7.53033222,1977.5,1977.4,1.36697767]
[1742589660368,7.5303317,1977.5,1977.4,1.36697767]
[1742589662270,4.3225317,1977.5,1977.4,1.36697767]
[1742589662467,7.5303317,1977.5,1977.4,1.36697767]
[1742589662969,7.44656,1977.5,1977.4,1.36697767]
[1742589663169,7.53033155,1977.5,1977.4,1.36697767]
[1742589663369,7.5303328,1977.5,1977.4,1.36697767]
[1742589664672,7.53033211,1977.5,1977.4,1.36697767]
[1742589665972,8.21653211,1977.5,1977.4,1.36697767]
[1742589666269,8.21653318,1977.5,1977.4,1.36697767]
[1742589668179,8.13276,1977.5,1977.4,1.36697767]
[1742589669374,8.21653176,1977.5,1977.4,1.36697767]
[1742589670364,9.57143176,1977.5,1977.4,1.36697767]
[1742589671068,3.29157176,1977.5,1977.4,2.37878767]
[1742589671275,3.224,1977.5,1977.4,3.71108767]
[1742589672275,4.23576,1977.5,1977.4,3.71108767]
[1742589672777,7.44356,1977.5,1977.4,3.71108767]
[1742589673972,4.21956,1977.5,1977.4,3.71108767]
[1742589675778,1.01176,1977.5,1977.4,3.71108767]
[1742589677274,3.222,1977.6,1977.5,1.01176]
[1742589677275,7.44155,1977.6,1977.5,1.01176]
[1742589677470,7.44155,1977.6,1977.5,2.31816]
[1742589679180,8.72055,1977.6,1977.5,2.31816]
[1742589679982,8.72055,1977.6,1977.5,1.3064]
[1742589683583,1.01176,1977.5,1977.4,0.00757767]
[1742589683783,3.30729737,1977.5,1977.4,0.00757767]
[1742589684181,4.23957058,1977.5,1977.4,0.00757767]
[1742589684684,4.23957058,1977.5,1977.4,1.41267767]
[1742589684884,1.01191,1977.2,1977.1,1.3413]
[1742589685085,7.44171,1977.2,1977.1,1.3413]
[1742589686279,8.74831,1977.2,1977.1,2.6897]
[1742589694890,8.74831,1977.2,1977.1,3.70166]
[1742589695492,8.74831,1977.2,1977.1,2.6897]
[1742589702197,8.74831,1977.2,1977.1,1.3484]
[1742589713205,9.65930268,1977.2,1977.1,1.3484]
[1742589714111,10.59249817,1977.2,1977.1,1.3484]
[1742589715505,9.65930268,1977.2,1977.1,1.3484]
[1742589717013,8.74831,1977.2,1977.1,1.3484]
[1742589717211,9.65934585,1977.2,1977.1,1.3484]
[1742589720317,1.01217,1976.7,1976.6,6.88421]
[1742589720514,1.01217,1976.7,1976.6,3.75731]
[1742589722315,2.40297,1976.7,1976.6,3.75731]
[1742589722614,2.40297,1976.7,1976.6,3.75732]
[1742589724511,1.01217,1976.7,1976.6,3.75732]
[1742589733618,2.30277,1976.7,1976.6,2.7451]
[1742589736723,1.01222,1976.6,1976.5,0.00511831]
[1742589737022,1.01222,1976.6,1976.4,1.2868]
[1742589737023,1.01227,1976.5,1976.4,1.2868]
[1742589737226,6.75390677,1976.5,1976.2,11.88371542]
[1742589737523,4.22017,1976.3,1976.2,11.88371542]
[1742589737726,4.30400295,1976.3,1976.2,11.88371542]
[1742589738027,5.65650295,1976.3,1976.2,11.88371542]
[1742589740030,1.01242,1976.2,1976.1,1.3407]
[1742589740326,6.32062,1976.2,1976.1,1.3407]
[1742589742835,4.6296,1976.2,1976.1,2.35317]
[1742589743132,5.64202,1976.2,1976.1,1.3407]
[1742589746433,5.64202,1976.2,1976.1,2.35317]
[1742589746632,5.64202,1976.2,1976.1,1.3407]
[1742589748035,4.22742,1976.2,1976.1,2.35317]
[1742589748332,5.52222,1976.2,1976.1,2.35317]
[1742589749231,3.215,1976.2,1976.1,1.3407]
[1742589749532,3.215,1976.2,1976.1,2.35317]
[1742589749833,4.22742,1976.2,1976.1,2.35317]
[1742589752338,1.01236,1976.4,1976.3,1.01232]
[1742589752634,5.61616,1976.4,1976.3,1.01232]
[1742589753037,5.61616,1976.4,1976.3,2.34422]
[1742589753340,4.22736,1976.4,1976.3,2.34422]
[1742589753535,3.215,1976.4,1976.3,2.34422]
[1742589753740,4.22732,1976.4,1976.3,2.34422]
[1742589754535,5.61612,1976.4,1976.3,2.34422]
[1742589755628,5.61612,1976.4,1976.3,1.3319]
[1742589756437,5.69994668,1976.4,1976.3,1.3319]
[1742589756638,5.61612,1976.4,1976.3,1.3319]
[1742589756938,6.4258,1976.5,1976.4,1.01232]
[1742589757125,8.81197,1976.5,1976.4,1.01232]
[1742589762934,5.60417,1976.5,1976.4,1.01232]
[1742589769044,4.23027,1976.5,1976.4,1.01232]
[1742589769645,4.23027,1976.5,1976.4,2.38152]
[1742589769840,3.215,1976.6,1976.5,1.01227]
[1742589770146,3.215,1976.6,1976.5,3.76727]
[1742589770345,50.99999,1976.7,1976.5,2.755]
[1742589770645,46.78,1976.7,1976.6,2.29172]
[1742589771040,4.23469767,1976.8,1976.7,1.01217]
[1742589771348,4.23469767,1976.8,1976.7,2.29167]
[1742589772346,0.00757767,1976.8,1976.7,2.29167]
[1742589773846,1.01969767,1976.8,1976.7,2.29167]
[1742589774247,2.37119767,1976.8,1976.7,2.29167]
[1742589781555,5.57899767,1976.8,1976.7,2.29167]
[1742589781743,2.37119767,1976.8,1976.7,2.29167]
[1742589782554,1.35907767,1976.8,1976.7,2.29167]
[1742589782856,2.37119767,1976.8,1976.7,2.29167]
[1742589783157,0.00757767,1976.8,1976.7,2.29167]
[1742589785655,1.01969767,1976.8,1976.7,2.29167]
[1742589786058,2.32769767,1976.8,1976.7,2.29167]
[1742589789359,2.32769767,1976.8,1976.7,1.2795]
[1742589790445,1.01969767,1976.8,1976.7,2.29167]
[1742589790650,0.00757767,1976.8,1976.7,2.29167]
[1742589791966,2.40529767,1976.8,1976.7,2.29167]
[1742589792258,1.39317767,1976.8,1976.7,2.29167]
[1742589794961,0.00757767,1976.8,1976.7,2.29167]
[1742589796550,1.34867767,1976.8,1976.7,2.29167]
[1742589797456,7.10453,1977.1,1977.0,1.01201]
[1742589797457,3.2078,1977.1,1977.0,1.01201]
[1742589797661,4.5489,1977.1,1977.0,1.01201]
[1742589797853,4.5489,1977.1,1977.0,2.30401]
[1742589798352,5.56086,1977.1,1977.0,2.30401]
[1742589803360,2.35306,1977.1,1977.0,2.30401]
[1742589803561,5.56086,1977.1,1977.0,2.30401]
[1742589804266,2.35306,1977.1,1977.0,2.30401]
[1742589804665,5.56086,1977.1,1977.0,2.30401]
[1742589804868,2.35306,1977.1,1977.0,2.30401]
[1742589805368,2.35306,1977.1,1977.0,1.292]
[1742589805559,3.03456,1977.1,1977.0,1.292]
[1742589806066,3.03456,1977.1,1977.0,2.30401]
[1742589806265,6.24236,1977.1,1977.0,2.30401]
[1742589807467,3.03456,1977.1,1977.0,2.30401]
[1742589807668,6.24236,1977.1,1977.0,2.30401]
[1742589807964,6.24236,1977.1,1977.0,1.292]
[1742589808965,1.01201,1977.0,1976.9,0.00757767]
[1742589809162,6.21521,1977.0,1976.9,0.00757767]
[1742589811074,6.21521,1977.0,1976.9,1.35857767]
[1742589811477,7.12594371,1977.0,1976.9,1.35857767]
[1742589811675,4.5098,1977.0,1976.9,2.37063767]
[1742589811975,5.52181,1977.0,1976.9,2.37063767]
[1742589815678,6.43249351,1977.0,1976.9,2.37063767]
[1742589816078,5.52181,1977.0,1976.9,2.37063767]
[1742589818888,5.52181,1977.0,1976.9,1.35857767]
[1742589819088,5.52181,1977.0,1976.9,2.37063767]
[1742589820082,5.52181,1977.0,1976.9,1.35857767]
[1742589820486,5.52181,1977.0,1976.9,2.37063767]
[1742589820787,5.52181,1977.0,1976.9,1.35857767]
[1742589820985,5.52181,1977.0,1976.9,2.37063767]
[1742589821585,5.52181,1977.0,1976.9,1.35857767]
[1742589825688,8.72961,1977.0,1976.9,1.35857767]
[1742589826588,9.64073772,1977.0,1976.9,1.35857767]
[1742589827088,10.57402946,1977.0,1976.9,2.02027767]
[1742589827291,10.57402946,1977.0,1976.9,2.72827767]
[1742589827484,10.57402946,1977.0,1976.9,3.74033767]
[1742589827688,7.36622946,1977.0,1976.9,3.74033767]
[1742589827993,6.43293772,1977.0,1976.9,3.74033767]
[1742589828186,5.52181,1977.0,1976.9,3.74033767]
[1742589828882,6.43290859,1977.0,1976.9,3.74033767]
[1742589829085,5.52181,1977.0,1976.9,3.74033767]
[1742589829284,6.43291817,1977.0,1976.9,3.74033767]
[1742589829485,9.64071817,1977.0,1976.9,3.74033767]
[1742589829691,5.52181,1977.0,1976.9,3.74033767]
[1742589830184,6.43292758,1977.0,1976.9,3.74033767]
[1742589830488,4.5098,1977.0,1976.9,3.74033767]
[1742589830795,5.05833006,1977.1,1977.0,1.01201]
[1742589830988,0.93324439,1977.1,1977.0,2.35581]
[1742589831395,7.44132767,1977.2,1977.1,1.01196]
[1742589831688,7.44132767,1977.2,1977.1,2.28896]
[1742589834790,4.23352767,1977.2,1977.1,2.28896]
[1742589835694,5.65042767,1977.2,1977.1,2.28896]
[1742589836201,8.85822767,1977.2,1977.1,1.277]
[1742589836500,10.18492767,1977.2,1977.1,1.277]
[1742589839794,9.53802767,1977.2,1977.1,2.28896]
[1742589840504,8.85822767,1977.2,1977.1,2.28896]
[1742589841401,7.44132767,1977.2,1977.1,2.28896]
[1742589841598,3.22157767,1977.2,1977.1,2.28896]
[1742589841898,4.23348767,1977.2,1977.1,2.28896]
[1742589846109,0.00757767,1977.2,1977.1,2.28896]
[1742589848508,3.213,1977.5,1977.4,1.01181]
[1742589849609,4.61,1977.5,1977.4,1.01181]
[1742589852718,3.213,1977.5,1977.4,1.01181]
[1742589852918,2.36018767,1977.6,1977.5,1.01176]
[1742589853119,1.34847767,1977.6,1977.5,1.01176]
[1742589853521,1.34847767,1977.6,1977.5,2.34416]
[1742589854712,2.36018767,1977.6,1977.5,2.34416]
[1742589856427,1.34847767,1977.6,1977.5,2.34416]
[1742589856612,2.36018767,1977.6,1977.5,2.34416]
[1742589856814,1.34847767,1977.6,1977.5,2.34416]
[1742589857716,2.36018767,1977.6,1977.5,2.34416]
[1742589857912,2.36018767,1977.6,1977.5,1.01176]
[1742589859020,1.34847767,1977.6,1977.5,1.01176]
[1742589859322,2.36018767,1977.6,1977.5,1.01176]
[1742589861928,1.01176,1977.5,1977.4,2.40199]
[1742589862125,6.90076,1977.5,1977.4,2.40199]
[1742589862423,0.00757767,1977.6,1977.5,1.01176]
[1742589862727,1.31557767,1977.6,1977.5,3.73946]
[1742589862923,0.00757767,1977.6,1977.5,3.73946]
[1742589865226,1.35027767,1977.6,1977.5,3.73946]
[1742589865434,2.36198767,1977.6,1977.5,3.73946]
[1742589866531,1.35027767,1977.6,1977.5,3.73946]
[1742589866723,2.36198767,1977.6,1977.5,3.73946]
[1742589867124,5.56978767,1977.6,1977.5,3.06406]
[1742589867430,5.56978767,1977.6,1977.5,2.38006]
[1742589867629,8.78178767,1977.6,1977.5,1.3683]
[1742589868226,8.78178767,1977.6,1977.5,2.38006]
[1742589868426,5.57398767,1977.6,1977.5,2.38006]
[1742589868624,8.78178767,1977.6,1977.5,2.38006]
[1742589870827,5.57398767,1977.6,1977.5,2.38006]
[1742589871031,4.56227767,1977.6,1977.5,2.38006]
[1742589871625,5.57398767,1977.6,1977.5,2.38006]
[1742589871825,4.56227767,1977.6,1977.5,2.38006]
[1742589874927,1.35027767,1977.6,1977.5,2.38006]
[1742589876336,2.36198767,1977.6,1977.5,2.38006]
[1742589879239,1.35027767,1977.6,1977.5,2.38006]
[1742589879837,2.36198767,1977.6,1977.5,2.38006]
[1742589880140,1.35027767,1977.6,1977.5,2.38006]
[1742589886042,2.36198767,1977.6,1977.5,2.38006]
[1742589888131,1.35027767,1977.6,1977.5,2.38006]
[1742589888338,2.36198767,1977.6,1977.5,2.38006]
[1742589890639,5.56978767,1977.6,1977.5,2.38006]
[1742589897038,5.56978767,1977.6,1977.5,1.3683]
[1742589897350,5.56978767,1977.6,1977.5,2.38006]
[1742589900750,5.56978767,1977.6,1977.5,1.3683]
[1742589901051,5.56978767,1977.6,1977.5,2.38006]
[1742589902151,6.48039202,1977.6,1977.5,1.3683]
[1742589902346,1.01191,1977.2,1977.1,11.88371542]
[1742589902544,7.43171,1977.2,1977.1,11.88371542]
[1742589902844,8.34231435,1977.2,1977.1,11.88371542]
[1742589903251,10.60264835,1977.2,1977.1,11.88371542]
[1742589903851,10.68643879,1977.2,1977.1,11.88371542]
[1742589904244,19.07064835,1977.2,1977.1,9.64393678]
[1742589904443,19.07064835,1977.2,1976.9,19.8451756]
[1742589904444,1.01201,1977.0,1976.9,0.00757767]
[1742589904644,7.51562001,1977.0,1976.9,0.00757767]
[1742589904839,1.01222,1976.6,1976.5,6.12320678]
[1742589905048,7.43202,1976.6,1976.5,6.12320678]
[1742589907451,7.43202,1976.6,1976.4,0.00757767]
[1742589907452,1.01227,1976.5,1976.4,0.00757767]
[1742589907646,2.32887,1976.5,1976.4,1.36627767]
[1742589909450,2.32887,1976.5,1976.4,0.00757767]
[1742589913551,4.82887,1976.5,1976.4,0.00757767]
[1742589913757,4.91270459,1976.5,1976.4,0.00757767]
[1742589913959,10.88070459,1976.5,1976.4,7.67e-06]
[1742589914157,1.01247,1976.1,1976.0,0.6977]
[1742589914454,7.51710459,1976.1,1976.0,0.6977]
[1742589915662,7.43327,1976.1,1976.0,0.6977]
[1742589916164,7.43327,1976.1,1976.0,1.71023]
[1742589916353,7.43327,1976.1,1976.0,3.02323]
[1742589918161,7.43327,1976.1,1976.0,2.0107]
[1742589918667,7.43327,1976.1,1976.0,3.02323]
[1742589919867,7.43327,1976.1,1976.0,2.0107]
[1742589920163,7.51704511,1976.1,1976.0,2.0107]
[1742589920463,7.43327,1976.1,1976.0,3.02323]
[1742589921968,7.43327,1976.1,1976.0,2.0107]
[1742589922165,7.43327,1976.1,1976.0,3.02323]
[1742589924469,0.00757767,1976.2,1976.1,1.01247]
[1742589924669,3.214,1976.3,1976.2,1.01242]
[1742589925176,3.214,1976.3,1976.2,3.02042]
[1742589925568,4.22637,1976.3,1976.2,3.02042]
[1742589926176,3.214,1976.3,1976.2,3.02042]